{"text_format":"1","workbook":"xlsx","n_sheets":4,"sheets":["4º Cat","EMPLEADOS RELACIÓN DEPENDENCIA","EMPLEADOS RELACIÓN DEPENDEN (2","AUTÓNOMOS"],"not_rendered":{"charts":0,"images":2,"macros":1,"external_links":0,"defined_names":0,"comments":0,"pivot_tables":0},"unopened":[],"bounds":{"document_bytes":16777216,"sheet_cells":100000,"rows_first":2000,"rows_last":500,"rows_between":2000,"halvings":0,"cell_chars":16384,"cell_head_chars":4096},"cells_cut":0,"cells_raw":0,"read":"whole","date_system":"1900"}

{"sheet":"4º Cat","index":0,"n_rows":22,"n_cols":1,"rows_kept":22,"cut":false,"hidden":false,"merged":[]}
["GANANCIAS 4º CATEGORÍA"]
[]
["CONSIGNAS: "]
["Calcular para cada caso la liquidación de ganancias para el año 2024: "]
[]
["1) Juan Pérez es un empleado en relación de dependencia, casado, con dos hijos de 9 y 19 años, y con una remuneración bruta mensual de $ 2500000 para el año 2024.-"]
["Su esposa no trabaja por lo que es el único sustento de su familia. Tiene de todas maneras una empleada doméstica medio tiempo, por la que paga $ 200000 por mes."]
["Está pagando un crédito hipotecario, que en el año 2024 en concepto de intereses, pagó $400000.-"]
["Su empleador le retuvo, en concepto de retenciones de impuesto a las ganancias, durante todo el 2024 $ 2000000.-"]
[]
["2) Pedro Gómez es un empleado en relación de dependencia, gerente de un banco, soltero, con una remuneración bruta de $ 3000000/mes.-"]
["Alquila un monoambiente que es su único inmueble casa/habitación, en $ 500000/mes.-"]
["Tiene una empleada doméstica que paga por mes $ 300000,-"]
["Su empleador le retuvo, en concepto de retenciones de impuesto a las ganancias, durante todo el 2024 $ 2500000.-"]
[]
["3) Pablo Tedesca es un trabajador autónomo, prestador de servicios de asesoramiento, quien tuvo ingresos en el año 2024 por $ 29000000.-"]
["Está divorciado y tiene 3 hijos menores de 18 años a su cargo."]
["Tuvo gastos de energía por $ 2000000 en todo el 2024; más alquiler del local comercial $ 6000000 anuales. Insumos $ 3000000.-"]
["Pagó intereses de un crédito hipotecario de su casa por $ 500000 en todo el 2024.-"]
["Durante el ejercicio anterior estuvo pagando Anticipos de Imp. A las Ganancias, por $ 200000 en cada cuota."]
[]
["TABLA ART. 94 -  IMP.A LAS GANANCIAS 2024"]

{"sheet":"EMPLEADOS RELACIÓN DEPENDENCIA","index":1,"n_rows":35,"n_cols":14,"rows_kept":35,"cut":false,"hidden":false,"merged":[]}
["Cálculo del Impuesto a las Ganancias anual -EMPLEADOS "]
["Los valores son para todo el año.  Montos vigentes para 2024."]
["Completar con los ingresos estimados del año y con las deducciones correspondientes."]
["ATENCIÓN: Se deben habilitar las macros antes de usar el botón de Cálculo. "]
[]
["Sueldo bruto anual "]
["Menos"]
[null,"Aporte jubilatorio.",{"$f":"+C6*0.11","v":0}]
[null,"Aporte obra social",{"$f":"+C6*0.03","v":0}]
[null,"Aporte INSSPJ",{"$f":"+C6*0.03","v":0}]
[null,"Cuota sindical",{"$f":"+C6*0.02","v":0}]
[]
["Sueldo neto anual ",null,{"$f":"C6-C8-C9-C10-C11","v":0}]
["Menos"]
["  Ganancia no imponible "]
["  Deducción p/empleados en relación de dependencia"]
["Cargas de familia (1)","((1) los familiares no tienen que tener ingresos superiores a $ 252564,84 al año)"]
[null,"Cónyuge"]
[null,"Hijos "]
["Otras deducciones permitidas"]
[null,"Intereses de crédito hipotecario para vivienda única"]
[null,"Servicio doméstico: aportes y remuneraciones (hasta gcia no imp)",{"$f":"+C15","v":0},null,null,null,null,null,null,null,null,null,null,"Autónomos"]
[",","Monto pagado por seguro de vida (máximo $ 24000)",0]
[",","Monto pagado por gastos de sepelio (máximo $ 996)",0]
[null,"Monto pagado por gastos y honorarios médicos (hasta 40% de lo abonado y no superar el 5% del ejercicio) ",0]
[",","Cuotas de medicina prepaga (hasta 5% ganancia neta del ejercicio) ",0]
[null,"Alquileres (40%)",0,null,null,null,null,null,null,null,null,null,null,"Empleados en relación de dep"]
[null,"Otras deducciones",0]
[null,"Otras deducciones",0]
[]
["Deducciones totales ",null,{"$f":"SUM(C15:C30)","v":0}]
["Ganancia neta imponible (base imponible del impuesto)",null,{"$f":"+C13-C31","v":0},null,null,"Imp a las ganancias determinado"]
[null,null,null,null,null,"Retenciones 4° categ"]
["Impuesto a pagar anual, según escala de ganancia neta imponible (poner el cursor en la tecla sombreada correspondiente y hacer clic en Calcular)",null,null,null,null,"Saldo IG a pagar"]
[null,null,null,null,null,"Saldo IG a pagar"]

{"sheet":"EMPLEADOS RELACIÓN DEPENDEN (2","index":2,"n_rows":33,"n_cols":6,"rows_kept":33,"cut":false,"hidden":false,"merged":[]}
["Cálculo del Impuesto a las Ganancias anual -EMPLEADOS "]
["Los valores son para todo el año.  Montos vigentes para 2024"]
["Completar con los ingresos estimados del año y con las deducciones correspondientes."]
[]
["Sueldo bruto anual "]
["Menos"]
[null,"Aporte jubilatorio.",{"$f":"+C5*0.11","v":0}]
[null,"Aporte obra social",{"$f":"+C5*0.03","v":0}]
[null,"Aporte INSSPJ",{"$f":"+C5*0.03","v":0}]
[null,"Cuota sindical",{"$f":"+C5*0.02","v":0}]
[]
["Sueldo neto anual ",null,{"$f":"C5-C7-C8-C9-C10","v":0}]
["Menos"]
["  Ganancia no imponible "]
["  Deducción p/empleados en relación de dependencia"]
["Cargas de familia (1)","((1) los familiares no tienen que tener ingresos superiores a gcia min no imp)"]
[null,"Cónyuge "]
[null,"Hijos "]
["Otras deducciones permitidas"]
[null,"Intereses de crédito hipotecario para vivienda única",0]
[null,"Servicio doméstico: aportes y remuneraciones (máximo hasta gcia min no imp)"]
[null,"Monto pagado por seguro de vida (máximo $ 24000)",0]
[null,"Monto pagado por gastos de sepelio (máximo $ 996)",0]
[null,"Monto pagado por gastos y honorarios médicos (hasta 40% de lo abonado y no superar el 5% del ejercicio) ",0]
[null,"Cuotas de medicina prepaga (hasta 5% ganancia neta del ejercicio) ",0]
[null,"Alquileres (40% o hasta la gcia min no imp)"]
[null,"Otras deducciones",0]
[null,"Otras deducciones",0]
[]
["Deducciones totales ",null,{"$f":"SUM(C14:C29)","v":0}]
["Ganancia neta imponible (base imponible del impuesto)",null,{"$f":"+C12-C30","v":0},null,null,"Imp a las ganancias determinado"]
[null,null,null,null,null,"Retenciones 4° categ"]
["Impuesto a pagar anual, según escala de ganancia neta imponible ",null,null,null,{"$f":"+E31-E32","v":0},"Saldo IG a pagar"]

{"sheet":"AUTÓNOMOS","index":3,"n_rows":33,"n_cols":6,"rows_kept":33,"cut":false,"hidden":false,"merged":[]}
["Cálculo del Impuesto a las Ganancias anual -AUTÓNOMOS"]
["Los valores son para todo el año.  Montos vigentes para 2024."]
["Completar con los ingresos estimados del año y con las deducciones correspondientes."]
[]
["Ingreso bruto anual "]
["Menos Gastos necesarios para obtener los ingresos"]
[null,"Energía"]
[null,"Alquiler"]
[null,"Insumos"]
[null,"Otros"]
[]
["Ingreso neto anual ",null,{"$f":"C5-C7-C8-C9-C10","v":0}]
["Menos"]
["  Ganancia no imponible "]
["  Deducción p/autónomos"]
["Cargas de familia (1)","((1) los familiares no tienen que tener ingresos superiores a la gcia ni imponible)"]
[null,"Cónyuge",0]
[null,"Hijos "]
["Otras deducciones permitidas"]
[null,"Intereses de crédito hipotecario para vivienda única ($20000)"]
[null,"Servicio doméstico: aportes y remuneraciones (máximo gcia no imp)",0]
[null,"Monto pagado por seguro de vida (máximo $ 12000)",0]
[null,"Monto pagado por gastos de sepelio (máximo $ 996)",0]
[null,"Monto pagado por gastos y honorarios médicos (hasta 40% de lo abonado y no superar el 5% del ejercicio) ",0]
[null,"Cuotas de medicina prepaga (hasta 5% ganancia neta del ejercicio) ",0]
[null,"Alquileres (40%)",0]
[null,"Otras deducciones",0]
[null,"Otras deducciones"]
["Deducciones totales ",null,{"$f":"SUM(C14:C27)","v":0}]
[]
["Ganancia neta imponible (o base imponible del impuesto)",null,{"$f":"C12-C29","v":0},null,null,"Imp a las ganancias determinado"]
[null,null,null,null,null,"Anticipos ingresados"]
[null,null,null,null,{"$f":"+E31-E32","v":0},"Saldo IG a pagar"]